[Event "Titled Tuesday Blitz September 21 2021"]
[White "Tisaj, Domen"]
[Black "Plotkin, Victor"]
[WhiteFideId "14628708"]
[BlackFideId "2606674"]
[WhiteElo "2272"]
[BlackElo "2310"]
[Result "1/2-1/2"]
[Round "04"]
[TimeControl "180+1"]
[Date "2021.09.21"]
[WhiteClock "0:00:14"]
[BlackClock "0:00:18"]

1. Nf3 {[%clk 0:03:00]}  d5 {[%clk 0:02:59]} 2. g3 {[%clk 0:03:00]}  Nf6 {[%clk 0:02:59]} 3. Bg2 {[%clk 0:03:00]}  c5 {[%clk 0:02:59]} 4. d3 {[%clk 0:03:00]}  Nc6 {[%clk 0:02:59]} 5. O-O {[%clk 0:03:00]}  e5 {[%clk 0:02:59]} 6. Nbd2 {[%clk 0:03:00]}  Be7 {[%clk 0:02:59]} 7. e4 {[%clk 0:03:00]}  O-O {[%clk 0:02:58]} 8. Qe1 {[%clk 0:03:00]}  dxe4 {[%clk 0:02:56]} 9. Nxe4 {[%clk 0:02:58]}  Nxe4 {[%clk 0:02:54]} 10. dxe4 {[%clk 0:02:58]}  Nd4 {[%clk 0:02:45]} 11. Nxd4 {[%clk 0:02:50]}  cxd4 {[%clk 0:02:45]} 12. c3 {[%clk 0:02:51]}  Be6 {[%clk 0:02:38]} 13. Qd2 {[%clk 0:02:36]}  Bc5 {[%clk 0:02:28]} 14. cxd4 {[%clk 0:02:30]}  Bxd4 {[%clk 0:02:24]} 15. Qb4 {[%clk 0:02:23]}  Qb6 {[%clk 0:02:20]} 16. Qxb6 {[%clk 0:02:20]}  axb6 {[%clk 0:02:20]} 17. a3 {[%clk 0:02:20]}  Rac8 {[%clk 0:02:18]} 18. Be3 {[%clk 0:02:14]}  Bxe3 {[%clk 0:02:16]} 19. fxe3 {[%clk 0:02:15]}  Rc2 {[%clk 0:02:13]} 20. Rf2 {[%clk 0:02:15]}  Rfc8 {[%clk 0:02:11]} 21. Raf1 {[%clk 0:02:14]}  Rxf2 {[%clk 0:02:09]} 22. Rxf2 {[%clk 0:02:15]}  Rc1+ {[%clk 0:02:06]} 23. Rf1 {[%clk 0:02:15]}  Rxf1+ {[%clk 0:02:05]} 24. Kxf1 {[%clk 0:02:08]}  Kf8 {[%clk 0:02:05]} 25. Ke1 {[%clk 0:02:08]}  Ke7 {[%clk 0:02:05]} 26. Kd2 {[%clk 0:02:09]}  Kd6 {[%clk 0:02:06]} 27. Kc3 {[%clk 0:02:09]}  f6 {[%clk 0:02:02]} 28. Kb4 {[%clk 0:02:08]}  Bd7 {[%clk 0:02:02]} 29. Bf1 {[%clk 0:02:00]}  Be8 {[%clk 0:01:59]} 30. Bb5 {[%clk 0:01:49]}  Bg6 {[%clk 0:01:48]} 31. Bd3 {[%clk 0:01:49]}  Be8 {[%clk 0:01:48]} 32. h4 {[%clk 0:01:46]}  Bc6 {[%clk 0:01:47]} 33. Kc3 {[%clk 0:01:44]}  g5 {[%clk 0:01:39]} 34. b4 {[%clk 0:01:39]}  gxh4 {[%clk 0:01:35]} 35. gxh4 {[%clk 0:01:39]}  Ke7 {[%clk 0:01:34]} 36. b5 {[%clk 0:01:33]}  Bd7 {[%clk 0:01:34]} 37. Bc4 {[%clk 0:01:33]}  Kd6 {[%clk 0:01:33]} 38. Kb4 {[%clk 0:01:28]}  Ke7 {[%clk 0:01:17]} 39. Bd5 {[%clk 0:01:26]}  Bc8 {[%clk 0:01:16]} 40. a4 {[%clk 0:01:26]}  Kd6 {[%clk 0:01:17]} 41. a5 {[%clk 0:01:21]}  bxa5+ {[%clk 0:01:15]} 42. Kxa5 {[%clk 0:01:22]}  Kc5 {[%clk 0:01:10]} 43. b6 {[%clk 0:01:15]}  f5 {[%clk 0:01:10]} 44. Bg8 {[%clk 0:01:04]}  f4 {[%clk 0:01:03]} 45. exf4 {[%clk 0:01:02]}  exf4 {[%clk 0:01:03]} 46. Bxh7 {[%clk 0:00:59]}  Kd4 {[%clk 0:00:55]} 47. Kb4 {[%clk 0:00:40]}  f3 {[%clk 0:00:54]} 48. Bg8 {[%clk 0:00:40]}  Kxe4 {[%clk 0:00:49]} 49. Bc4 {[%clk 0:00:41]}  f2 {[%clk 0:00:41]} 50. h5 {[%clk 0:00:39]}  Be6 {[%clk 0:00:39]} 51. Bf1 {[%clk 0:00:32]}  Bf5 {[%clk 0:00:35]} 52. Kc5 {[%clk 0:00:21]}  Kf4 {[%clk 0:00:35]} 53. Kd4 {[%clk 0:00:19]}  Kg5 {[%clk 0:00:30]} 54. Ke3 {[%clk 0:00:17]}  Kxh5 {[%clk 0:00:29]} 55. Kxf2 {[%clk 0:00:17]}  Kg6 {[%clk 0:00:29]} 56. Bg2 {[%clk 0:00:18]}  Bc8 {[%clk 0:00:28]} 57. Ke3 {[%clk 0:00:18]}  Kf6 {[%clk 0:00:29]} 58. Kd4 {[%clk 0:00:18]}  Ke7 {[%clk 0:00:29]} 59. Kc5 {[%clk 0:00:19]}  Kd7 {[%clk 0:00:29]} 60. Bh3+ {[%clk 0:00:19]}  Kd8 {[%clk 0:00:29]} 61. Bg2 {[%clk 0:00:17]}  Kd7 {[%clk 0:00:29]} 62. Kd5 {[%clk 0:00:16]}  Kd8 {[%clk 0:00:28]} 63. Kd6 {[%clk 0:00:16]}  Bf5 {[%clk 0:00:21]} 64. Bxb7 {[%clk 0:00:16]}  Bd3 {[%clk 0:00:21]} 65. Kc5 {[%clk 0:00:11]}  Be2 {[%clk 0:00:20]} 66. Kd6 {[%clk 0:00:10]}  Bd3 {[%clk 0:00:19]} 67. Bd5 {[%clk 0:00:07]}  Kc8 {[%clk 0:00:18]} 68. Kc5 {[%clk 0:00:08]}  Kb8 {[%clk 0:00:18]} 69. Kd4 {[%clk 0:00:08]}  Bf1 {[%clk 0:00:18]} 70. Kc3 {[%clk 0:00:08]}  Ba6 {[%clk 0:00:18]} 71. Kb4 {[%clk 0:00:09]}  Bb7 {[%clk 0:00:19]} 72. Bc4 {[%clk 0:00:09]}  Bg2 {[%clk 0:00:18]} 73. Kc5 {[%clk 0:00:10]}  Kb7 {[%clk 0:00:18]} 74. Bd3 {[%clk 0:00:09]}  Bh1 {[%clk 0:00:18]} 75. Kb5 {[%clk 0:00:08]}  Bg2 {[%clk 0:00:18]} 76. Ka5 {[%clk 0:00:09]}  Bh1 {[%clk 0:00:18]} 77. Ba6+ {[%clk 0:00:09]}  Kb8 {[%clk 0:00:17]} 78. Kb4 {[%clk 0:00:10]}  Bg2 {[%clk 0:00:18]} 79. Kc5 {[%clk 0:00:11]}  Bh1 {[%clk 0:00:18]} 80. Kd6 {[%clk 0:00:12]}  Bg2 {[%clk 0:00:18]} 81. Ke7 {[%clk 0:00:13]}  Bh1 {[%clk 0:00:18]} 82. Kf6 {[%clk 0:00:14]}  Bg2 {[%clk 0:00:19]} 83. Be2 {[%clk 0:00:13]}  Bh1 {[%clk 0:00:19]} 84. Bf1 {[%clk 0:00:14]}  Kb7 {[%clk 0:00:18]} 85. Bg2+ {[%clk 0:00:14]}  Bxg2 {[%clk 0:00:18]} 86. Ke7 {[%clk 0:00:14]}  Kxb6 {[%clk 0:00:18]} 1/2-1/2


[Site "https://www.chess.com"]

[Event "Titled Tuesday Blitz September 21 2021"]
[White "Tsvetkov, Andrey"]
[Black "Koridze, Lile"]
[WhiteFideId "34139360"]
[BlackFideId "13612514"]
[WhiteElo "2280"]
[BlackElo "1978"]
[Result "1-0"]
[Round "04"]
[TimeControl "180+1"]
[Date "2021.09.21"]
[WhiteClock "0:00:39"]
[BlackClock "0:00:21"]

1. d4 {[%clk 0:03:00]}  Nf6 {[%clk 0:02:58]} 2. c4 {[%clk 0:03:00]}  e6 {[%clk 0:02:58]} 3. Nc3 {[%clk 0:03:00]}  Bb4 {[%clk 0:02:58]} 4. f3 {[%clk 0:03:01]}  c5 {[%clk 0:02:56]} 5. d5 {[%clk 0:03:01]}  Bxc3+ {[%clk 0:02:47]} 6. bxc3 {[%clk 0:03:01]}  d6 {[%clk 0:02:48]} 7. e4 {[%clk 0:02:59]}  e5 {[%clk 0:02:48]} 8. Bd3 {[%clk 0:02:56]}  O-O {[%clk 0:02:49]} 9. Ne2 {[%clk 0:02:56]}  a6 {[%clk 0:02:34]} 10. O-O {[%clk 0:02:54]}  Nbd7 {[%clk 0:02:32]} 11. g4 {[%clk 0:02:49]}  h6 {[%clk 0:02:31]} 12. g5 {[%clk 0:02:46]}  hxg5 {[%clk 0:02:13]} 13. Bxg5 {[%clk 0:02:47]}  Qc7 {[%clk 0:02:13]} 14. Kh1 {[%clk 0:02:40]}  Nh7 {[%clk 0:02:09]} 15. Be3 {[%clk 0:02:36]}  Ndf6 {[%clk 0:02:09]} 16. Rg1 {[%clk 0:02:35]}  Kh8 {[%clk 0:02:09]} 17. Qe1 {[%clk 0:02:34]}  Nh5 {[%clk 0:01:54]} 18. Qh4 {[%clk 0:02:16]}  g6 {[%clk 0:01:54]} 19. Bh6 {[%clk 0:02:13]}  Rg8 {[%clk 0:01:53]} 20. f4 {[%clk 0:02:12]}  f6 {[%clk 0:01:45]} 21. fxe5 {[%clk 0:02:09]}  dxe5 {[%clk 0:01:41]} 22. Raf1 {[%clk 0:02:02]}  Qe7 {[%clk 0:01:34]} 23. Rg2 {[%clk 0:01:53]}  Bd7 {[%clk 0:01:22]} 24. Rfg1 {[%clk 0:01:54]}  Qf7 {[%clk 0:01:18]} 25. Qf2 {[%clk 0:01:43]}  Rae8 {[%clk 0:01:00]} 26. Qf3 {[%clk 0:01:41]}  Re7 {[%clk 0:00:56]} 27. Be3 {[%clk 0:01:29]}  g5 {[%clk 0:00:53]} 28. d6 {[%clk 0:01:09]}  Ree8 {[%clk 0:00:52]} 29. Bxg5 {[%clk 0:01:07]}  Rg7 {[%clk 0:00:36]} 30. Bh4 {[%clk 0:00:44]}  Reg8 {[%clk 0:00:31]} 31. Rxg7 {[%clk 0:00:42]}  Rxg7 {[%clk 0:00:32]} 32. Rxg7 {[%clk 0:00:42]}  Qxg7 {[%clk 0:00:32]} 33. Qxh5 {[%clk 0:00:40]}  Bg4 {[%clk 0:00:27]} 34. Qe8+ {[%clk 0:00:40]}  Nf8 {[%clk 0:00:27]} 35. Ng1 {[%clk 0:00:40]}  Kh7 {[%clk 0:00:21]} 36. Qe7 {[%clk 0:00:39]} 1-0


[Site "https://www.chess.com"]

[Event "Titled Tuesday Blitz September 21 2021"]
[White "Vlassov, Nikolai"]
[Black "Ismayil, Malak"]
[WhiteFideId "4103360"]
[BlackFideId "13412604"]
[WhiteElo "2407"]
[BlackElo "1879"]
[Result "1-0"]
[Round "04"]
[TimeControl "180+1"]
[Date "2021.09.21"]
[WhiteClock "0:00:12"]
[BlackClock "0:00:01"]

1. e4 {[%clk 0:03:00]}  e5 {[%clk 0:02:59]} 2. Bc4 {[%clk 0:03:00]}  Nc6 {[%clk 0:02:58]} 3. f4 {[%clk 0:03:00]}  Bc5 {[%clk 0:02:50]} 4. Nf3 {[%clk 0:02:59]}  d6 {[%clk 0:02:41]} 5. Nc3 {[%clk 0:02:58]}  Nf6 {[%clk 0:02:39]} 6. f5 {[%clk 0:02:58]}  Bd7 {[%clk 0:02:29]} 7. d3 {[%clk 0:02:58]}  h6 {[%clk 0:02:28]} 8. Qe2 {[%clk 0:02:55]}  Qe7 {[%clk 0:02:27]} 9. Be3 {[%clk 0:02:54]}  Bxe3 {[%clk 0:02:15]} 10. Qxe3 {[%clk 0:02:54]}  a6 {[%clk 0:02:05]} 11. a3 {[%clk 0:02:47]}  O-O-O {[%clk 0:02:00]} 12. b4 {[%clk 0:02:40]}  g6 {[%clk 0:01:56]} 13. fxg6 {[%clk 0:02:34]}  fxg6 {[%clk 0:01:53]} 14. b5 {[%clk 0:02:35]}  axb5 {[%clk 0:01:52]} 15. Nxb5 {[%clk 0:02:34]}  Ng4 {[%clk 0:01:45]} 16. Qd2 {[%clk 0:02:28]}  Rdf8 {[%clk 0:01:43]} 17. O-O-O {[%clk 0:02:12]}  Be6 {[%clk 0:01:21]} 18. Bxe6+ {[%clk 0:01:54]}  Qxe6 {[%clk 0:01:22]} 19. c4 {[%clk 0:01:54]}  Nf6 {[%clk 0:01:15]} 20. Kc2 {[%clk 0:01:46]}  Kd7 {[%clk 0:01:12]} 21. Rb1 {[%clk 0:01:43]}  Ra8 {[%clk 0:01:02]} 22. Rb3 {[%clk 0:01:40]}  Na5 {[%clk 0:00:48]} 23. Rb2 {[%clk 0:01:31]}  Nxc4 {[%clk 0:00:27]} 24. dxc4 {[%clk 0:01:27]}  Qxc4+ {[%clk 0:00:28]} 25. Qc3 {[%clk 0:01:11]}  Qxe4+ {[%clk 0:00:26]} 26. Kc1 {[%clk 0:01:10]}  Nd5 {[%clk 0:00:24]} 27. Qc2 {[%clk 0:00:58]}  Qxc2+ {[%clk 0:00:21]} 28. Kxc2 {[%clk 0:00:53]}  c6 {[%clk 0:00:22]} 29. Nc3 {[%clk 0:00:52]}  Nxc3 {[%clk 0:00:20]} 30. Kxc3 {[%clk 0:00:45]}  Rxa3+ {[%clk 0:00:19]} 31. Kc2 {[%clk 0:00:45]}  b5 {[%clk 0:00:18]} 32. Rd1 {[%clk 0:00:45]}  Ke6 {[%clk 0:00:17]} 33. Kd2 {[%clk 0:00:43]}  e4 {[%clk 0:00:17]} 34. Nd4+ {[%clk 0:00:40]}  Kd7 {[%clk 0:00:17]} 35. Ke2 {[%clk 0:00:38]}  Rf8 {[%clk 0:00:15]} 36. Rc1 {[%clk 0:00:34]}  e3 {[%clk 0:00:15]} 37. Nf3 {[%clk 0:00:29]}  g5 {[%clk 0:00:11]} 38. h3 {[%clk 0:00:29]}  h5 {[%clk 0:00:11]} 39. g4 {[%clk 0:00:25]}  hxg4 {[%clk 0:00:11]} 40. hxg4 {[%clk 0:00:24]}  Rf4 {[%clk 0:00:12]} 41. Rg1 {[%clk 0:00:20]}  b4 {[%clk 0:00:12]} 42. Rg3 {[%clk 0:00:19]}  c5 {[%clk 0:00:12]} 43. Rg2 {[%clk 0:00:18]}  Kc6 {[%clk 0:00:10]} 44. Nxg5 {[%clk 0:00:18]}  d5 {[%clk 0:00:07]} 45. Nh3 {[%clk 0:00:19]}  Rf6 {[%clk 0:00:07]} 46. g5 {[%clk 0:00:19]}  Rg6 {[%clk 0:00:06]} 47. Nf4 {[%clk 0:00:19]}  Rg7 {[%clk 0:00:06]} 48. g6 {[%clk 0:00:20]}  d4 {[%clk 0:00:06]} 49. Nh5 {[%clk 0:00:20]}  Re7 {[%clk 0:00:05]} 50. g7 {[%clk 0:00:20]}  d3+ {[%clk 0:00:05]} 51. Kf3 {[%clk 0:00:20]}  Rxg7 {[%clk 0:00:04]} 52. Rxg7 {[%clk 0:00:16]}  e2 {[%clk 0:00:05]} 53. Re7 {[%clk 0:00:15]}  Ra1 {[%clk 0:00:04]} 54. Rexe2 {[%clk 0:00:12]}  dxe2 {[%clk 0:00:04]} 55. Rxe2 {[%clk 0:00:12]}  Kb5 {[%clk 0:00:05]} 56. Nf4 {[%clk 0:00:12]}  Ra3+ {[%clk 0:00:05]} 57. Ke4 {[%clk 0:00:12]}  c4 {[%clk 0:00:05]} 58. Rg2 {[%clk 0:00:12]}  Ra1 {[%clk 0:00:05]} 59. Rg5+ {[%clk 0:00:12]}  Ka4 {[%clk 0:00:05]} 60. Kd4 {[%clk 0:00:12]}  Rd1+ {[%clk 0:00:05]} 61. Kxc4 {[%clk 0:00:12]}  Rc1+ {[%clk 0:00:04]} 62. Kd4 {[%clk 0:00:13]}  b3 {[%clk 0:00:04]} 63. Nd3 {[%clk 0:00:13]}  Rc8 {[%clk 0:00:03]} 64. Rg7 {[%clk 0:00:11]}  Rd8+ {[%clk 0:00:01]} 65. Kc3 {[%clk 0:00:12]}  Rc8+ {[%clk 0:00:02]} 66. Kd2 {[%clk 0:00:12]}  Rc2+ {[%clk 0:00:02]} 67. Ke3 {[%clk 0:00:12]}  Rc8 {[%clk 0:00:01]} 68. Ra7+ {[%clk 0:00:11]}  Kb5 {[%clk 0:00:02]} 69. Kd4 {[%clk 0:00:11]}  Rc4+ {[%clk 0:00:01]} 70. Kd5 {[%clk 0:00:11]}  Rc8 {[%clk 0:00:01]} 71. Rb7+ {[%clk 0:00:11]}  Ka4 {[%clk 0:00:01]} 72. Nc5+ {[%clk 0:00:11]}  Ka3 {[%clk 0:00:01]} 73. Rxb3+ {[%clk 0:00:11]}  Ka2 {[%clk 0:00:01]} 74. Rb6 {[%clk 0:00:12]} 1-0


[Site "https://www.chess.com"]

[Event "Titled Tuesday Blitz September 21 2021"]
[White "Wachinger, Guenther"]
[Black "Zarubitski, Viachaslau"]
[WhiteFideId "4604261"]
[BlackFideId "13509373"]
[WhiteElo "2212"]
[BlackElo "2315"]
[Result "0-1"]
[Round "04"]
[TimeControl "180+1"]
[Date "2021.09.21"]
[WhiteClock "0:00:02"]
[BlackClock "0:01:18"]

1. e4 {[%clk 0:03:00]}  c5 {[%clk 0:02:47]} 2. Nf3 {[%clk 0:03:00]}  e6 {[%clk 0:02:46]} 3. d4 {[%clk 0:03:00]}  cxd4 {[%clk 0:02:47]} 4. Nxd4 {[%clk 0:03:01]}  Nc6 {[%clk 0:02:48]} 5. Nc3 {[%clk 0:03:01]}  Qc7 {[%clk 0:02:48]} 6. Be3 {[%clk 0:03:00]}  a6 {[%clk 0:02:48]} 7. Qf3 {[%clk 0:03:01]}  Nf6 {[%clk 0:02:44]} 8. O-O-O {[%clk 0:03:00]}  Ne5 {[%clk 0:02:42]} 9. Qg3 {[%clk 0:03:00]}  b5 {[%clk 0:02:43]} 10. f4 {[%clk 0:02:54]}  Neg4 {[%clk 0:02:42]} 11. Bg1 {[%clk 0:02:54]}  h5 {[%clk 0:02:41]} 12. h3 {[%clk 0:02:53]}  Nh6 {[%clk 0:02:37]} 13. e5 {[%clk 0:02:49]}  h4 {[%clk 0:02:26]} 14. Qd3 {[%clk 0:02:36]}  b4 {[%clk 0:02:24]} 15. Ne4 {[%clk 0:01:44]}  Nxe4 {[%clk 0:02:18]} 16. Qxe4 {[%clk 0:01:44]}  Bb7 {[%clk 0:02:19]} 17. Qd3 {[%clk 0:01:35]}  g6 {[%clk 0:02:16]} 18. Rh2 {[%clk 0:01:27]}  Nf5 {[%clk 0:02:14]} 19. Nxf5 {[%clk 0:01:27]}  gxf5 {[%clk 0:02:15]} 20. Be2 {[%clk 0:01:26]}  Bh6 {[%clk 0:02:04]} 21. Be3 {[%clk 0:01:27]}  Rg8 {[%clk 0:02:03]} 22. Bf3 {[%clk 0:01:21]}  Rg3 {[%clk 0:01:51]} 23. Bxb7 {[%clk 0:00:27]}  Qxb7 {[%clk 0:01:52]} 24. Qd2 {[%clk 0:00:28]}  Rc8 {[%clk 0:01:47]} 25. Kb1 {[%clk 0:00:27]}  a5 {[%clk 0:01:36]} 26. Rg1 {[%clk 0:00:15]}  Qe4 {[%clk 0:01:31]} 27. Re1 {[%clk 0:00:10]}  Qc6 {[%clk 0:01:26]} 28. Rc1 {[%clk 0:00:06]}  a4 {[%clk 0:01:25]} 29. Bf2 {[%clk 0:00:05]}  Rc3 {[%clk 0:01:23]} 30. Bxh4 {[%clk 0:00:02]}  Rc4 {[%clk 0:01:18]} 0-1


[Site "https://www.chess.com"]

[Event "Titled Tuesday Blitz September 21 2021"]
[White "Warmerdam, Max"]
[Black "Chernobay, Artem"]
[WhiteFideId "1048104"]
[BlackFideId "4167406"]
[WhiteElo "2537"]
[BlackElo "2480"]
[Result "1-0"]
[Round "04"]
[TimeControl "180+1"]
[Date "2021.09.21"]
[WhiteClock "0:01:10"]
[BlackClock "0:00:15"]

1. e4 {[%clk 0:03:00]}  e6 {[%clk 0:02:59]} 2. d4 {[%clk 0:03:00]}  d5 {[%clk 0:02:59]} 3. Nc3 {[%clk 0:03:01]}  Nf6 {[%clk 0:02:58]} 4. Bg5 {[%clk 0:03:01]}  dxe4 {[%clk 0:02:57]} 5. Nxe4 {[%clk 0:03:02]}  Be7 {[%clk 0:02:57]} 6. Nxf6+ {[%clk 0:03:02]}  Bxf6 {[%clk 0:02:57]} 7. Bxf6 {[%clk 0:03:03]}  Qxf6 {[%clk 0:02:58]} 8. Nf3 {[%clk 0:03:03]}  c5 {[%clk 0:02:58]} 9. c3 {[%clk 0:02:59]}  cxd4 {[%clk 0:02:49]} 10. Qxd4 {[%clk 0:03:00]}  Nc6 {[%clk 0:02:45]} 11. Qxf6 {[%clk 0:02:58]}  gxf6 {[%clk 0:02:46]} 12. g3 {[%clk 0:02:58]}  e5 {[%clk 0:02:36]} 13. Bg2 {[%clk 0:02:58]}  Bg4 {[%clk 0:02:31]} 14. h3 {[%clk 0:02:57]}  Be6 {[%clk 0:02:30]} 15. Nd2 {[%clk 0:02:53]}  O-O-O {[%clk 0:02:29]} 16. Ne4 {[%clk 0:02:53]}  f5 {[%clk 0:02:20]} 17. Ng5 {[%clk 0:02:43]}  h6 {[%clk 0:01:42]} 18. Nxe6 {[%clk 0:02:36]}  fxe6 {[%clk 0:01:43]} 19. Rd1 {[%clk 0:02:16]}  e4 {[%clk 0:01:41]} 20. Bf1 {[%clk 0:02:17]}  Ne5 {[%clk 0:01:40]} 21. Be2 {[%clk 0:02:17]}  h5 {[%clk 0:01:25]} 22. h4 {[%clk 0:02:17]}  Kc7 {[%clk 0:01:15]} 23. O-O {[%clk 0:01:44]}  Rdg8 {[%clk 0:01:12]} 24. Kh2 {[%clk 0:01:43]}  Ng4+ {[%clk 0:00:55]} 25. Kh3 {[%clk 0:01:42]}  e3 {[%clk 0:00:50]} 26. Rd4 {[%clk 0:01:36]}  Nxf2+ {[%clk 0:00:46]} 27. Kg2 {[%clk 0:01:34]}  Ne4 {[%clk 0:00:46]} 28. Rf3 {[%clk 0:01:32]}  e5 {[%clk 0:00:40]} 29. Rc4+ {[%clk 0:01:27]}  Kd6 {[%clk 0:00:40]} 30. Rxe3 {[%clk 0:01:28]}  Rc8 {[%clk 0:00:30]} 31. Rxc8 {[%clk 0:01:27]}  Rxc8 {[%clk 0:00:30]} 32. Bxh5 {[%clk 0:01:26]}  Rg8 {[%clk 0:00:30]} 33. Bd1 {[%clk 0:01:22]}  Nf6 {[%clk 0:00:28]} 34. Rf3 {[%clk 0:01:21]}  Nd5 {[%clk 0:00:20]} 35. Bb3 {[%clk 0:01:18]}  e4 {[%clk 0:00:20]} 36. Rxf5 {[%clk 0:01:17]}  Ne3+ {[%clk 0:00:17]} 37. Kf2 {[%clk 0:01:15]}  Ng4+ {[%clk 0:00:16]} 38. Ke2 {[%clk 0:01:14]}  Re8 {[%clk 0:00:16]} 39. Rf4 {[%clk 0:01:13]}  Nh2 {[%clk 0:00:15]} 40. Ke3 {[%clk 0:01:10]} 1-0


[Site "https://www.chess.com"]

[Event "Titled Tuesday Blitz September 21 2021"]
[White "Yi, Richard"]
[Black "Szpar, Milosz"]
[WhiteFideId "2079518"]
[BlackFideId "1184989"]
[WhiteElo "2472"]
[BlackElo "2282"]
[Result "0-1"]
[Round "04"]
[TimeControl "180+1"]
[Date "2021.09.21"]
[WhiteClock "0:00:06"]
[BlackClock "0:01:13"]

1. e4 {[%clk 0:03:00]}  e6 {[%clk 0:02:59]} 2. d4 {[%clk 0:03:00]}  d5 {[%clk 0:02:59]} 3. Nc3 {[%clk 0:03:00]}  Nf6 {[%clk 0:02:59]} 4. e5 {[%clk 0:03:01]}  Nfd7 {[%clk 0:02:59]} 5. f4 {[%clk 0:03:01]}  c5 {[%clk 0:02:59]} 6. Nf3 {[%clk 0:03:02]}  Nc6 {[%clk 0:02:59]} 7. Be3 {[%clk 0:03:03]}  Be7 {[%clk 0:02:59]} 8. dxc5 {[%clk 0:02:57]}  O-O {[%clk 0:02:58]} 9. Qd2 {[%clk 0:02:53]}  Qa5 {[%clk 0:02:50]} 10. O-O-O {[%clk 0:02:37]}  b6 {[%clk 0:02:45]} 11. Bb5 {[%clk 0:02:33]}  Nb4 {[%clk 0:02:42]} 12. Kb1 {[%clk 0:02:12]}  bxc5 {[%clk 0:02:16]} 13. a3 {[%clk 0:02:11]}  Rb8 {[%clk 0:02:10]} 14. axb4 {[%clk 0:02:01]}  cxb4 {[%clk 0:02:10]} 15. Nxd5 {[%clk 0:02:01]}  exd5 {[%clk 0:02:10]} 16. Bxd7 {[%clk 0:02:01]}  Bxd7 {[%clk 0:02:10]} 17. Qxd5 {[%clk 0:02:01]}  Qxd5 {[%clk 0:02:10]} 18. Rxd5 {[%clk 0:02:01]}  Bc6 {[%clk 0:02:11]} 19. Ra5 {[%clk 0:02:00]}  Rfc8 {[%clk 0:02:10]} 20. Rxa7 {[%clk 0:01:39]}  Bf8 {[%clk 0:02:07]} 21. b3 {[%clk 0:01:21]}  Be4 {[%clk 0:02:03]} 22. Ra2 {[%clk 0:01:07]}  Rc3 {[%clk 0:01:59]} 23. Bd2 {[%clk 0:01:01]}  Rxb3+ {[%clk 0:01:55]} 24. Rb2 {[%clk 0:01:02]}  Ra3 {[%clk 0:01:53]} 25. Nd4 {[%clk 0:00:49]}  Rd8 {[%clk 0:01:36]} 26. Bxb4 {[%clk 0:00:41]}  Rxd4 {[%clk 0:01:36]} 27. Bxa3 {[%clk 0:00:34]}  Bxa3 {[%clk 0:01:37]} 28. Rb8+ {[%clk 0:00:35]}  Bf8 {[%clk 0:01:37]} 29. Re1 {[%clk 0:00:32]}  g6 {[%clk 0:01:32]} 30. Kc1 {[%clk 0:00:23]}  Kg7 {[%clk 0:01:30]} 31. Re3 {[%clk 0:00:21]}  Bxg2 {[%clk 0:01:25]} 32. e6 {[%clk 0:00:19]}  fxe6 {[%clk 0:01:22]} 33. Rxe6 {[%clk 0:00:20]}  Rxf4 {[%clk 0:01:21]} 34. Ra6 {[%clk 0:00:16]}  Bc5 {[%clk 0:01:17]} 35. Rc8 {[%clk 0:00:11]}  Be3+ {[%clk 0:01:14]} 36. Kb2 {[%clk 0:00:12]}  Rb4+ {[%clk 0:01:14]} 37. Kc3 {[%clk 0:00:11]}  Rb7 {[%clk 0:01:14]} 38. Kd3 {[%clk 0:00:06]}  Bf1+ {[%clk 0:01:13]} 39. Kxe3 {[%clk 0:00:05]}  Bxa6 {[%clk 0:01:13]} 40. c4 {[%clk 0:00:06]}  Re7+ {[%clk 0:01:13]} 41. Kd4 {[%clk 0:00:06]}  Bxc8 {[%clk 0:01:13]} 0-1


[Site "https://www.chess.com"]

[Event "Titled Tuesday Blitz September 21 2021"]
[White "Zhigalko, Sergei"]
[Black "Babazada, Khazar"]
[WhiteFideId "13502956"]
[BlackFideId "13413554"]
[WhiteElo "2968"]
[BlackElo "2757"]
[Result "0-1"]
[Round "04"]
[TimeControl "180+1"]
[Date "2021.09.21"]
[WhiteClock "0:00:01"]
[BlackClock "0:00:05"]

1. e4 {[%clk 0:03:00]}  c5 {[%clk 0:02:56]} 2. Nf3 {[%clk 0:03:01]}  Nc6 {[%clk 0:02:55]} 3. c3 {[%clk 0:03:01]}  g6 {[%clk 0:02:54]} 4. d4 {[%clk 0:03:01]}  cxd4 {[%clk 0:02:53]} 5. cxd4 {[%clk 0:03:02]}  Bg7 {[%clk 0:02:52]} 6. Nc3 {[%clk 0:03:01]}  d6 {[%clk 0:02:51]} 7. Be3 {[%clk 0:02:56]}  Nf6 {[%clk 0:02:51]} 8. d5 {[%clk 0:02:56]}  Nb8 {[%clk 0:02:44]} 9. h3 {[%clk 0:02:53]}  O-O {[%clk 0:02:44]} 10. Bc4 {[%clk 0:02:53]}  Na6 {[%clk 0:02:44]} 11. O-O {[%clk 0:02:49]}  Bd7 {[%clk 0:02:40]} 12. Re1 {[%clk 0:02:42]}  Rc8 {[%clk 0:02:38]} 13. Bxa6 {[%clk 0:02:37]}  bxa6 {[%clk 0:02:39]} 14. Bxa7 {[%clk 0:02:36]}  Qa5 {[%clk 0:02:19]} 15. Bd4 {[%clk 0:02:34]}  Rb8 {[%clk 0:02:19]} 16. Qd2 {[%clk 0:02:22]}  Rfc8 {[%clk 0:02:04]} 17. Rac1 {[%clk 0:02:19]}  Rb7 {[%clk 0:01:39]} 18. e5 {[%clk 0:01:54]}  dxe5 {[%clk 0:01:38]} 19. Bxe5 {[%clk 0:01:48]}  Be8 {[%clk 0:00:58]} 20. d6 {[%clk 0:01:29]}  Rd8 {[%clk 0:00:54]} 21. Qf4 {[%clk 0:00:52]}  Nh5 {[%clk 0:00:42]} 22. Qe4 {[%clk 0:00:50]}  Rb4 {[%clk 0:00:40]} 23. Qe3 {[%clk 0:00:41]}  Bxe5 {[%clk 0:00:34]} 24. Nxe5 {[%clk 0:00:36]}  Rxd6 {[%clk 0:00:33]} 25. Qa7 {[%clk 0:00:10]}  Qd8 {[%clk 0:00:25]} 26. Ng4 {[%clk 0:00:07]}  Bd7 {[%clk 0:00:23]} 27. Ne3 {[%clk 0:00:02]}  Nf4 {[%clk 0:00:22]} 28. b3 {[%clk 0:00:02]}  Bc6 {[%clk 0:00:09]} 29. Rcd1 {[%clk 0:00:02]}  Nd3 {[%clk 0:00:06]} 30. Re2 {[%clk 0:00:01]}  Nf4 {[%clk 0:00:06]} 31. Ree1 {[%clk 0:00:01]}  Nd3 {[%clk 0:00:07]} 32. Re2 {[%clk 0:00:02]}  Rb7 {[%clk 0:00:07]} 33. Qxa6 {[%clk 0:00:01]}  Nf4 {[%clk 0:00:07]} 34. Ree1 {[%clk 0:00:01]}  Nd3 {[%clk 0:00:04]} 35. Rxd3 {[%clk 0:00:01]}  Rxd3 {[%clk 0:00:05]} 36. Qxc6 {[%clk 0:00:02]}  Rc7 {[%clk 0:00:05]} 37. Qe4 {[%clk 0:00:01]}  Rcxc3 {[%clk 0:00:04]} 38. Ng4 {[%clk 0:00:02]}  Rd4 {[%clk 0:00:04]} 39. Qe5 {[%clk 0:00:02]}  f6 {[%clk 0:00:04]} 40. Qe6+ {[%clk 0:00:02]}  Kg7 {[%clk 0:00:04]} 41. Nh6 {[%clk 0:00:03]}  Kxh6 {[%clk 0:00:04]} 42. Qf7 {[%clk 0:00:04]}  Rd1 {[%clk 0:00:04]} 43. Rxd1 {[%clk 0:00:02]}  Qxd1+ {[%clk 0:00:05]} 44. Kh2 {[%clk 0:00:03]}  Qd6+ {[%clk 0:00:05]} 45. g3 {[%clk 0:00:03]}  Rf3 {[%clk 0:00:05]} 46. Qf8+ {[%clk 0:00:03]}  Kh5 {[%clk 0:00:05]} 47. Kg2 {[%clk 0:00:03]}  Qd5 {[%clk 0:00:05]} 48. g4+ {[%clk 0:00:04]}  Kg5 {[%clk 0:00:05]} 49. Kg1 {[%clk 0:00:02]}  Rxh3 {[%clk 0:00:05]} 50. Qxe7 {[%clk 0:00:01]}  Qh1# {[%clk 0:00:05]} 0-1


[Site "https://www.chess.com"]